[Event "Austrian Women Bundesliga 2023-24"]
[Site "Austria"]
[Date "2024.04.12"]
[Round "7"]
[White "Exler, Veronika"]
[Black "Kordzadze, Nino"]
[Result "1-0"]
[ECO "C00"]
[WhiteElo "2157"]
[BlackElo "1976"]
[Annotator "TA"]
[PlyCount "117"]
[EventDate "2023.11.21"]
[EventType "team-tourn"]
[EventCountry "AUT"]
[SourceTitle "playchess.com"]
[Source "ChessBase"]
[SourceQuality "1"]
[TimeControl "40/5400+30:1800+30"]

{[%evp 10,117,-3,-2,-1,-12,0,-2,10,-16,18,25,39,25,39,35,39,29,28,36,49,27,36,20,20,0,12,10,21,42,75,72,58,63,100,91,93,98,94,79,103,42,32,24,81,54,161,169,162,108,115,41,42,24,34,23,97,10,124,118,124,44,45,54,55,0,6,8,8,8,35,0,56,0,0,0,0,0,8,0,0,0,0,0,0,0,0,0,0,0,0,0,21,66,547,385,863,830,627,535,457,450,450,450,2379,1606,5529,5513,29964,8327]} 1. e4 {[%emt 0:00:01]} e6 {[%emt 0:00:06]} 2. d4 {[%emt 0:00:05]} d5 {[%emt 0:00:05]} 3. Bd3 {[%emt 0:00:04][%cal Bf1d3,Bd3e4,Be4f3][%mdl 32]} dxe4 {[%emt 0:00:16]} 4. Bxe4 {[%emt 0:00:04]} Nf6 {[%emt 0:00:07]} 5. Bf3 {[%emt 0:00:04]} c5 {[%emt 0:00:53]} 6. Ne2 {[%emt 0:00:09]} Be7 {[%emt 0:00:49]} 7. Be3 {[%emt 0:02:17]} O-O {[%emt 0:00:57]} 8. dxc5 {[%emt 0:09:53]} Qxd1+ {[%emt 0:03:06] The position is equal.} 9. Kxd1 {[%emt 0:01:49]} e5 {[%emt 0:08:34]} 10. Nbc3 {[%emt 0:16:52]} Nc6 {[%emt 0:03:35]} 11. a3 {[%emt 0:26:14]} a5 {[%emt 0:02:08]} 12. Kc1 {[%emt 0:02:41]} Rd8 {[%emt 0:10:59]} 13. Rd1 {[%emt 0:02:58]} Rxd1+ {[%emt 0:01:08]} 14. Kxd1 {[%emt 0:00:26]} Be6 {Prevents Nd5.} 15. Ke1 {[%emt 0:20:29]} Bf5 {[%emt 0:12:47]} 16. Bxc6 {[%emt 0:02:50]} bxc6 {[%emt 0:02:15]} 17. Rc1 {[%emt 0:00:03]} Ng4 {[%emt 0:07:28][%cal Og4e3]} 18. Ng3 {[%emt 0:02:56]} Bg6 {[%emt 0:00:58][%cal Of7f5]} 19. Nge4 {[%emt 0:01:28]} f5 {[%emt 0:05:23][%cal Bf7f5,Bf5f4][%mdl 32]} 20. Bg5 $1 {[%emt 0:02:06]} Bf8 {[%emt 0:05:16]} 21. Nd6 {[%emt 0:01:51]} a4 {[%emt 0:04:38][%cal Of5f4]} (21... Nxh2 $2 22. f3 $18) 22. h3 {[%emt 0:02:43]} Nf6 {[%emt 0:00:11]} 23. Bxf6 {[%emt 0:01:28]} gxf6 {[%emt 0:00:05]} 24. Rd1 $1 {[%emt 0:00:30] White is more active.} f4 {[%emt 0:04:07]} 25. Nce4 {[%emt 0:00:14] Excellent horsemanship.} (25. Nde4 $16) 25... Be7 $14 {[%emt 0:01:48]} 26. f3 {[%emt 0:00:35]} f5 {[%emt 0:07:52]} (26... Kf8 $11 {remains equal.}) 27. Nf2 {[%emt 0:02:28]} Ra5 {[%emt 0:07:43]} ({Black should try} 27... Bh4 $1 $14) 28. Nd3 $18 {[%emt 0:00:25]} e4 {[%emt 0:01:31]} 29. Nxf4 {[%emt 0:00:40]} (29. fxe4 $18 fxe4 30. Nxf4 Rxc5 31. Nxg6 hxg6 32. c3 (32. Nxe4 Rxc2 33. Rd2 Rc4 $16)) 29... Rxc5 $16 {[%emt 0:00:25]} 30. Nxg6 {[%emt 0:00:13]} ({White should play} 30. c3 $1 $16) 30... hxg6 $18 {[%emt 0:00:05][%mdl 4096] Endgame. KRB-KRN} 31. c3 {[%emt 0:00:24]} exf3 {[%emt 0:07:31]} 32. gxf3 {[%emt 0:00:00]} Bg5 {[%emt 0:00:38]} (32... Re5+ $11 33. Kf1 Re3) 33. Kf1 {[%emt 0:01:02]} (33. Rd4 $1 $16) 33... Bh4 {[%emt 0:00:49]} (33... Be3 $11) 34. Rd4 $16 {[%emt 0:00:25][%csl LRa4,LRh4]} Bg3 {[%emt 0:00:18]} 35. Nb7 {[%emt 0:00:55]} (35. Nc8 $16) 35... Re5 {[%emt 0:01:55]} 36. Kg2 {[%emt 0:00:33]} f4 {[%emt 0:00:32]} 37. Re4 {[%emt 0:00:33]} (37. Rxa4 Re2+ 38. Kg1 Rxb2 $11) (37. Rd8+ $14 Kg7 38. Rd2 (38. Rd7+ Kh6 $11)) 37... Rd5 {[%emt 0:00:50]} 38. Re2 {[%emt 0:00:18]} (38. Rxa4 Rd2+ 39. Kg1 Rxb2) 38... Bh4 {[%emt 0:00:47]} 39. c4 {[%emt 0:00:16]} Rd4 {[%emt 0:00:24]} (39... Rg5+ $5 40. Kh2 Rg3 $11) 40. Na5 {[%emt 0:00:38]} Kg7 {[%emt 0:00:28]} (40... c5 $11) 41. Rc2 {[%emt 0:14:57]} (41. c5 $14 Rd5 42. Rc2 (42. Nxc6 Rxc5 43. Nd4 Kf7 $11)) 41... c5 $11 {[%emt 0:05:32]} 42. b4 {[%emt 0:06:10]} cxb4 {[%emt 0:07:03]} 43. axb4 {[%emt 0:00:01]} a3 {[%emt 0:00:08]} 44. b5 {[%emt 0:06:56]} Be1 {[%emt 0:04:08]} 45. Nb3 {[%emt 0:00:57]} (45. Nc6 Rd3 46. b6 Rb3 $19) 45... Rd3 {[%emt 0:01:41]} 46. Nc1 {[%emt 0:00:05]} Rd2+ {[%emt 0:03:34]} 47. Rxd2 {[%emt 0:00:05]} Bxd2 {[%emt 0:00:04] KB-KN} 48. Na2 {[%emt 0:00:12]} Be3 {[%emt 0:01:28]} 49. Kf1 $1 {[%emt 0:00:28]} Kf6 {[%emt 0:01:00] ...Ke5 would now be deadly.} 50. Ke2 {[%emt 0:01:17]} Ke5 {[%emt 0:04:09]} 51. Kd3 {[%emt 0:00:01] And now Kc3 would win.} Bc5 $2 {[%emt 0:01:28][%mdl 8192] Black cannot hold the game after this.} (51... Bb6 $14) 52. Kc3 $18 {[%emt 0:00:27] Hoping for Nc1.} g5 $2 {[%emt 0:04:29] [#]} (52... Bb6 53. Kb3 Bc5 (53... Kd4 54. Nb4 $16)) 53. Nc1 $1 {[%emt 0:01:04] White wants to mate with Nd3+.} Bd4+ {[%emt 0:01:12]} 54. Kb3 {[%emt 0:00:13]} Bb6 {[%emt 0:00:12] [#]} 55. Ne2 {[%emt 0:03:36]} (55. Kxa3 Kd4 $16) 55... Bc5 {[%emt 0:00:26]} 56. Ka2 {[%emt 0:00:07]} Bb4 {[%emt 0:01:16]} (56... Be7 $142 57. Nc3 (57. b6 Kd6 $18) 57... Kd4) 57. b6 {[%emt 0:02:02][%cal Bb5b6,Bb6b7][%mdl 32]} Kd6 {[%emt 0:00:14]} 58. Nd4 {[%emt 0:00:15] Intending b7 and mate.} Ba5 {[%emt 0:01:12]} 59. b7 {[%emt 0:00:30] Weighted Error Value: White=0.15 (very precise) /Black=0.44.  Loses game:     	---       	Black=1      Mistake:       	White=7     	Black=7      Inaccurate:     	White=3     	Black=5      OK:         	White=19    	Black=19     Best:        	White=6     	Black=3      Strong:       	White=4     	---} 1-0

[Event "Austrian Women Bundesliga 2023-24"]
[Site "Austria"]
[Date "2024.04.12"]
[Round "7"]
[White "Vidic, Teja"]
[Black "Karacsonyi, Kata"]
[Result "0-1"]
[ECO "B30"]
[WhiteElo "2125"]
[BlackElo "2137"]
[Annotator "TA"]
[PlyCount "92"]
[EventDate "2023.11.21"]
[EventType "team-tourn"]
[EventCountry "AUT"]
[SourceTitle "playchess.com"]
[Source "ChessBase"]
[SourceQuality "1"]
[TimeControl "40/5400+30:1800+30"]

{[%evp 11,92,4,7,0,19,4,13,0,0,0,-10,0,17,0,0,19,94,12,11,-71,30,27,124,-30,-28,-23,-18,-18,-32,-42,-43,-45,-40,-102,-125,-121,-97,-175,-165,-170,-77,-130,-140,-122,-85,-98,-84,-92,-83,-74,-18,-16,-12,-42,-37,-38,-39,-42,-37,-50,-51,-82,-95,-79,-8,-8,0,-37,-3,-97,-106,-290,-290,-322,-280,-344,-318,-345,-342,-309,-291,-29975,-29975]} 1. e4 {[%emt 0:00:03]} c5 {[%emt 0:00:08]} 2. Nf3 {[%emt 0:00:05]} Nc6 {[%emt 0:00:14]} 3. Bb5 {[%emt 0:00:07]} e5 {[%emt 0:00:12]} 4. O-O {[%emt 0:03:48]} Bd6 {[%emt 0:00:12]} 5. d4 {[%emt 0:00:05]} Nxd4 {[%emt 0:00:20]} 6. Nxd4 {[%emt 0:15:01] B30: Sicilian: 2...Nc6 3 Bb5, lines without ...g6.} cxd4 {[%emt 0:00:55]} 7. c3 {[%emt 0:00:04]} Qc7 $146 {[%emt 0:12:34]} ({Predecessor:} 7... Bc5 8. b4 Bb6 9. a4 a6 10. Bd3 Nf6 11. a5 Ba7 12. b5 axb5 13. Na3 dxc3 14. Nxb5 {0-1 So,W (2760)-Carlsen,M (2853) Chessable Masters Div 1 Lose rapid 2023 (2.1)}) 8. cxd4 {[%emt 0:08:41]} exd4 {[%emt 0:00:32]} 9. Qxd4 {[%emt 0:00:05]} Bxh2+ {[%emt 0:01:26]} 10. Kh1 {[%emt 0:00:03]} Be5 {[%emt 0:06:12]} 11. Qd3 {[%emt 0:00:50]} a6 {[%emt 0:12:50]} 12. Bc4 {[%emt 0:04:54]} (12. f4 $5 axb5 13. fxe5 $11) 12... Ne7 {[%emt 0:03:01]} 13. f4 {[%emt 0:09:32]} Bd6 {[%emt 0:00:25]} (13... d5 $11 14. Bxd5 Bf6 (14... Nxd5 15. exd5 Bd6 16. Re1+ Kf8 17. Nc3 $11)) 14. e5 {[%emt 0:00:06]} (14. Nc3 $16) 14... Bc5 $11 {[%emt 0:01:04]} 15. b4 {[%emt 0:00:15]} (15. Nc3 $11 {keeps the balance.} d5 16. Nxd5) 15... Ba7 {[%emt 0:05:04]} ({Better is} 15... d5 $1 $17 {[%cal Rd5c4]} 16. Bxd5 Bxb4) 16. Nc3 $11 {[%emt 0:09:39]} Qb6 {[%emt 0:10:51]} (16... b5 $11 17. Bd5 Nxd5 18. Nxd5 Qc6) 17. Ne4 $2 {[%emt 0:08:07]} ({White must play} 17. f5 $16 Qd4 18. Bg5 Qxd3 19. Bxd3) 17... Qh6+ $11 {[%emt 0:00:59]} (17... Qxb4 $2 18. Nd6+ Kf8 19. f5 $18 (19. Nxf7 b5 $18) (19. Bxf7 Bc5 $18)) 18. Qh3 {[%emt 0:00:24]} Qxh3+ {[%emt 0:03:44]} 19. gxh3 {[%emt 0:00:04]} Nf5 {[%emt 0:02:57]} 20. a4 {[%emt 0:07:57]} b5 {[%emt 0:05:28]} 21. Bd5 {[%emt 0:14:01]} (21. axb5 $2 Bb7 22. Re1 axb5 $19 (22... Bxe4+ $2 23. Rxe4 Ng3+ 24. Kg2 $19)) 21... Rb8 {[%emt 0:00:11]} 22. Nd6+ {[%emt 0:00:04]} ({White should play} 22. Kh2 $15) 22... Nxd6 $17 {[%emt 0:00:12]} 23. exd6 {[%emt 0:00:05]} O-O {[%emt 0:05:39]} 24. f5 {[%emt 0:03:16]} (24. Rd1 $17) 24... Bd4 $1 $19 {[%emt 0:03:58]} 25. Ra2 {[%emt 0:00:47]} Re8 {[%emt 0:06:19]} (25... bxa4 $1 $19 {has better winning chances.} 26. Rxa4 Rb5) 26. Rd1 {[%emt 0:05:12]} (26. a5 $142) 26... Bc3 $1 $17 {[%emt 0:03:31]} 27. Bd2 {[%emt 0:00:49]} Be5 {[%emt 0:03:47]} 28. Be3 {[%emt 0:05:57] [#]} bxa4 $1 {[%emt 0:04:09]} (28... Bxd6 29. Ba7 Rb7 30. Bxb7 Bxb7+ 31. Kg1 Bxb4 32. axb5 axb5 33. Rxd7 $15) 29. Bc5 {[%emt 0:00:41]} a5 {[%emt 0:04:52]} 30. Rxa4 {[%emt 0:02:24]} (30. bxa5 $2 Rb5 31. Rxa4 Rxc5 $19) 30... Bc3 {[%emt 0:02:50]} (30... axb4 $17 {aiming for ...b3.} 31. Rxb4 Rxb4 32. Bxb4 Ba6) 31. Rxa5 $11 {[%emt 0:01:40]} (31. bxa5 Rb5 32. a6 (32. Bb6 $2 Rxd5 33. Rxd5 Bb7 $19) 32... Bxa6 (32... Rxc5 33. a7 $11) 33. Rxa6 Rxc5) 31... Bxb4 {[%emt 0:00:48]} 32. Rb1 {[%emt 0:01:01]} (32. Bxb4 $5 Rxb4 33. Ra8 $15) 32... Re1+ {[%emt 0:00:28]} (32... Bxc5 33. Rxb8 Bxd6 34. Rb1 $18) 33. Rxe1 {[%emt 0:00:03]} Bxe1 {[%emt 0:00:02]} 34. Ra7 {[%emt 0:01:01]} g6 {[%emt 0:00:57]} 35. fxg6 {[%emt 0:00:29]} hxg6 {[%emt 0:00:05]} 36. Bd4 {[%emt 0:00:37]} Bb4 {[%emt 0:00:55]} 37. Be5 {[%emt 0:00:27] [#]} Bc5 {[%emt 0:00:29]} (37... Kh7 $1 $17 {Strongly threatening ...Rb5.} 38. Rc7 f5) 38. Ra4 $11 {[%emt 0:00:26]} Bb4 {[%emt 0:00:39]} 39. Kh2 {[%emt 0:00:37]} g5 {[%emt 0:00:26]} 40. Kg3 {[%emt 0:00:17]} (40. Bc4 $11) 40... Rb5 $17 {[%emt 0:00:24]} 41. Ra8 $2 {[%emt 0:05:56]} (41. Bc4 $17 Be1+ (41... Rxe5 42. Rxb4 Kg7 43. Rb5 $17) 42. Kh2 Rxe5 43. Ra8) 41... Rxd5 $19 {[%emt 0:00:20]} 42. Rxc8+ {[%emt 0:00:09]} Kh7 {[%emt 0:00:04]} 43. Bb2 {[%emt 0:02:23]} Kg6 {[%emt 0:05:45]} ({Weaker is} 43... Rxd6 44. Kg4 $17) 44. Kf3 {[%emt 0:06:04]} Kf5 {[%emt 0:01:35]} ({And not} 44... Bxd6 45. Ke4 Rd2 46. Rg8+ Kh5 47. Rh8+ Kg6 48. Rg8+ Kh6 49. Rh8+ Kg6 50. Rg8+ $11) 45. Ke3 {[%emt 0:00:57]} Bxd6 {[%emt 0:00:24]} 46. h4 $2 {[%emt 0:01:27]} (46. Ke2 $19) 46... Bf4+ {[%emt 0:00:14]} 0-1

[Event "Austrian Women Bundesliga 2023-24"]
[Site "Austria"]
[Date "2024.04.12"]
[Round "7"]
[White "Mandukhai, Myagmarsuren"]
[Black "Papp, Sarah"]
[Result "1-0"]
[ECO "E20"]
[WhiteElo "2083"]
[BlackElo "2281"]
[Annotator "RC"]
[PlyCount "93"]
[EventDate "2023.11.21"]
[EventType "team-tourn"]
[EventCountry "AUT"]
[SourceTitle "playchess.com"]
[Source "ChessBase"]
[SourceQuality "1"]
[TimeControl "40/5400+30:1800+30"]

1. d4 {[%emt 0:00:04]} Nf6 {[%emt 0:00:05]} 2. c4 {[%emt 0:00:11]} e6 {[%emt 0:00:05]} 3. Nc3 {[%emt 0:00:14]} Bb4 {[%emt 0:00:06]} 4. g3 {[%emt 0:00:09]} c5 {[%emt 0:00:27]} 5. Nf3 {[%emt 0:00:07]} Nc6 {[%emt 0:00:45]} 6. Bg2 {[%emt 0:00:32]} Ne4 {[%emt 0:00:29]} 7. Bd2 {[%emt 0:06:48]} Nxd2 {[%emt 0:02:30]} 8. Qxd2 {[%emt 0:00:48]} cxd4 {[%emt 0:00:33]} 9. Nxd4 {[%emt 0:00:24]} a6 {[%emt 0:01:04]} 10. a3 {[%emt 0:02:54]} Be7 {[%emt 0:01:04]} 11. O-O {[%emt 0:03:32]} O-O {[%emt 0:01:28]} 12. Rfd1 {[%emt 0:10:40]} Ne5 {[%emt 0:20:57]} 13. b3 {[%emt 0:05:24]} Rb8 {[%emt 0:02:22]} 14. Qf4 {[%emt 0:08:26]} d6 {[%emt 0:03:53]} 15. c5 {[%emt 0:14:10]} Ng6 {[%emt 0:09:54]} 16. Qc1 {[%emt 0:02:39]} d5 {[%emt 0:08:07]} 17. c6 {[%emt 0:03:39]} Qc7 {[%emt 0:08:36]} 18. e4 {[%emt 0:05:59]} dxe4 {[%emt 0:04:05]} 19. Bxe4 {[%emt 0:05:11]} bxc6 {[%emt 0:01:30]} 20. b4 {[%emt 0:05:45]} c5 {[%emt 0:09:17]} 21. Nc6 {[%emt 0:01:42]} cxb4 {[%emt 0:00:29]} 22. axb4 {[%emt 0:09:32]} Rb6 {[%emt 0:01:55]} 23. Na4 {[%emt 0:00:08]} Rb5 {[%emt 0:01:07]} 24. Nc3 {[%emt 0:00:05]} Rb6 {[%emt 0:02:06]} 25. Na4 {[%emt 0:00:06]} Rb5 {[%emt 0:00:15]} 26. Nc3 {[%emt 0:00:05]} Rh5 {[%emt 0:03:07]} 27. b5 {[%emt 0:03:43]} Rc5 {[%emt 0:03:34]} 28. Qe3 {[%emt 0:00:56]} f5 {[%emt 0:06:05]} 29. b6 {[%emt 0:01:03]} Rxc3 {[%emt 0:04:55]} 30. Qxc3 {[%emt 0:02:03]} Qxb6 {[%emt 0:00:12]} 31. Nxe7+ {[%emt 0:01:40]} Nxe7 {[%emt 0:00:01]} 32. Rab1 {[%emt 0:00:13]} Qa7 {[%emt 0:00:54]} 33. Bb7 {[%emt 0:02:27]} Nd5 {[%emt 0:03:50]} 34. Qc6 {[%emt 0:01:02]} Ne7 {[%emt 0:01:04]} 35. Qc7 {[%emt 0:00:47]} Kf7 {[%emt 0:00:30]} 36. Rb6 {[%emt 0:03:24]} a5 {[%emt 0:00:26]} 37. Rdd6 {[%emt 0:01:00]} a4 {[%emt 0:00:32]} 38. Qc4 {[%emt 0:01:07]} Kg8 {[%emt 0:00:39]} 39. Bxc8 Nxc8 40. Qxe6+ {[%emt 0:01:02]} Kh8 {[%emt 0:00:00]} 41. Ra6 {[%emt 0:05:32]} Qb7 42. Qxf5 Qe7 {[%emt 0:05:32]} 43. Qe6 {[%emt 0:01:23]} Qg5 {[%emt 0:00:43]} 44. Rdc6 {[%emt 0:01:45]} Qd2 {[%emt 0:01:16]} 45. Qf5 {[%emt 0:00:59]} Qd8 {[%emt 0:10:13]} 46. Qxf8+ {[%emt 0:00:10]} Qxf8 {[%emt 0:00:07]} 47. Ra8 {[%emt 0:00:04]} 1-0

[Event "Austrian Women Bundesliga 2023-24"]
[Site "Austria"]
[Date "2024.04.12"]
[Round "7"]
[White "Berke, Ana"]
[Black "Babiy, Olga"]
[Result "0-1"]
[ECO "B10"]
[WhiteElo "2066"]
[BlackElo "2306"]
[Annotator "RC"]
[PlyCount "100"]
[EventDate "2023.11.21"]
[EventType "team-tourn"]
[EventCountry "AUT"]
[SourceTitle "playchess.com"]
[Source "ChessBase"]
[SourceQuality "1"]
[TimeControl "40/5400+30:1800+30"]

1. e4 {[%emt 0:00:10]} c6 {[%emt 0:00:03]} 2. c4 {[%emt 0:01:05]} d5 {[%emt 0:00:06]} 3. exd5 {[%emt 0:00:08]} cxd5 {[%emt 0:00:03]} 4. cxd5 {[%emt 0:00:06]} Nf6 {[%emt 0:00:07]} 5. Nc3 {[%emt 0:00:05]} Nxd5 {[%emt 0:00:07]} 6. Nf3 {[%emt 0:00:07]} Nc6 {[%emt 0:00:25]} 7. d4 {[%emt 0:00:40]} Bf5 {[%emt 0:00:38]} 8. Bb5 {[%emt 0:02:39]} e6 {[%emt 0:00:22]} 9. O-O {[%emt 0:00:40]} Be7 {[%emt 0:03:27]} 10. a3 {[%emt 0:07:34]} O-O {[%emt 0:03:40]} 11. Re1 {[%emt 0:00:57]} Rc8 {[%emt 0:09:25]} 12. Ba4 {[%emt 0:06:42]} Bg4 {[%emt 0:05:53]} 13. Be3 {[%emt 0:09:59]} Nxc3 {[%emt 0:03:26]} 14. bxc3 {[%emt 0:00:16]} Na5 {[%emt 0:00:11]} 15. h3 {[%emt 0:10:19]} Bxf3 {[%emt 0:07:44]} 16. Qxf3 {[%emt 0:01:14]} Rxc3 {[%emt 0:00:13]} 17. Qe4 {[%emt 0:01:53]} Bf6 {[%emt 0:21:11]} 18. Rab1 {[%emt 0:16:40]} Rxa3 {[%emt 0:07:19]} 19. Bc2 {[%emt 0:03:26]} g6 {[%emt 0:00:37]} 20. h4 {[%emt 0:07:24]} Qd5 {[%emt 0:08:26]} 21. Qf4 {[%emt 0:02:21]} Bg7 {[%emt 0:00:06]} 22. Be4 {[%emt 0:02:30]} Qd7 {[%emt 0:01:41]} 23. Red1 {[%emt 0:02:24]} b6 {[%emt 0:01:52]} 24. Rbc1 {[%emt 0:03:51]} Qa4 {[%emt 0:06:45]} 25. Qc7 {[%emt 0:05:56]} Qb5 {[%emt 0:04:30]} 26. d5 {[%emt 0:03:40]} exd5 {[%emt 0:01:34]} 27. Bxd5 {[%emt 0:02:41]} Rd3 {[%emt 0:01:11]} 28. Rxd3 {[%emt 0:04:29]} Qxd3 {[%emt 0:00:03]} 29. Bf3 {[%emt 0:00:39]} Nb3 {[%emt 0:06:35]} 30. Rd1 {[%emt 0:00:29]} Qa6 {[%emt 0:00:03]} 31. h5 {[%emt 0:00:50]} gxh5 {[%emt 0:02:46]} 32. Bxh5 {[%emt 0:00:49]} Qa5 {[%emt 0:00:48]} 33. Bf3 {[%emt 0:00:58]} Nc5 {[%emt 0:01:39]} 34. Qg3 {[%emt 0:00:39]} Ne6 {[%emt 0:00:41]} 35. Qh4 {[%emt 0:00:25]} Qe5 {[%emt 0:01:02]} 36. Be4 {[%emt 0:00:32]} f5 {[%emt 0:01:09]} 37. Bd5 {[%emt 0:00:35]} Kh8 {[%emt 0:00:40]} 38. Qc4 {[%emt 0:01:45]} Rd8 {[%emt 0:01:05]} 39. Rd2 {[%emt 0:00:36]} Qa1+ {[%emt 0:00:56]} 40. Kh2 {[%emt 0:00:22]} Qe5+ {[%emt 0:00:16]} 41. g3 {[%emt 0:31:04]} Nf8 {[%emt 0:08:24]} 42. Bg5 {[%emt 0:00:00]} Rd7 {[%emt 0:02:19]} 43. Bf4 {[%emt 0:00:00]} Qc3 {[%emt 0:01:23]} 44. Qe2 {[%emt 0:00:00]} Qc5 {[%emt 0:00:44]} 45. Qf3 {[%emt 0:00:00]} Ng6 {[%emt 0:01:40]} 46. Be6 {[%emt 0:00:00]} Rxd2 {[%emt 0:02:37]} 47. Bxd2 {[%emt 0:00:00]} Qd6 {[%emt 0:00:26]} 48. Qe2 {[%emt 0:00:00]} Ne5 {[%emt 0:02:06]} 49. Bb3 {[%emt 0:03:25]} Qxd2 {[%emt 0:00:36]} 50. Qb5 {[%emt 0:00:50]} Ng4+ {[%emt 0:00:44]} 0-1

[Event "Austrian Women Bundesliga 2023-24"]
[Site "Austria"]
[Date "2024.04.12"]
[Round "7"]
[White "Rojickova, Monika"]
[Black "Frey, Alisa"]
[Result "1-0"]
[ECO "C78"]
[WhiteElo "2056"]
[BlackElo "2016"]
[Annotator "TA"]
[PlyCount "85"]
[EventDate "2023.11.21"]
[EventType "team-tourn"]
[EventCountry "AUT"]
[SourceTitle "playchess.com"]
[Source "ChessBase"]
[SourceQuality "1"]
[TimeControl "40/5400+30:1800+30"]

{[%evp 18,85,33,16,38,37,75,83,58,70,60,59,146,69,80,80,83,50,63,72,184,183,190,175,293,302,423,413,404,358,361,339,509,469,483,491,493,477,476,457,460,431,611,583,772,570,830,0,668,0,858,641,771,707,648,558,549,459,605,579,1040,994,1134,1131,1143,1141,1597,1593,1593,1551]} 1. e4 {[%emt 0:00:03]} e5 {[%emt 0:00:06]} 2. Nf3 {[%emt 0:00:04]} Nc6 {[%emt 0:00:04]} 3. Bb5 {[%emt 0:00:19][%cal Bf1b5,Bb5a4,Ba4b3][%mdl 32]} a6 {[%emt 0:00:05]} 4. Ba4 {[%emt 0:00:04]} Nf6 {[%emt 0:00:08]} 5. O-O {[%emt 0:00:39]} b5 {[%emt 0:00:15]} 6. Bb3 {[%emt 0:00:06]} Be7 {[%emt 0:00:28]} 7. d4 {[%emt 0:01:55]} d6 {[%emt 0:08:08]} 8. c3 {[%emt 0:00:32]} Bg4 {[%emt 0:07:47]} 9. Be3 {[%emt 0:04:01]} O-O {[%emt 0:01:54]} 10. Nbd2 {[%emt 0:01:13]} Re8 {[%emt 0:01:57]} 11. h3 {[%emt 0:20:38]} Bc8 {[%emt 0:04:12]} 12. Ng5 {[%emt 0:15:28]} Rf8 {[%emt 0:05:43] White is better.} 13. f4 {[%emt 0:01:13] aiming for fxe5.} exd4 {[%emt 0:06:19]} 14. cxd4 {[%emt 0:00:59]} h6 {[%emt 0:02:58]} ({Black should try} 14... Na5 $1 $14) 15. Ngf3 {[%emt 0:03:25]} (15. e5 $1 $16 {[%cal Re5f6]} Nxd4 16. Nxf7 (16. Bxd4 dxe5 17. Bxe5 c6 $18) (16. exf6 Bxf6 17. Nxf7 Rxf7 $16) 16... Rxf7 17. Bxf7+ (17. Bxd4 dxe5 18. Bxf7+ Kxf7 $18) 17... Kxf7 18. Bxd4 dxe5 19. Bxe5) 15... Bb7 {[%emt 0:03:15]} 16. Qe1 $36 {[%emt 0:06:07][%mdl 2048] White is really pushing.} Qd7 {[%emt 0:13:43]} 17. d5 {[%emt 0:17:09]} Nb4 {[%emt 0:04:18]} 18. Nd4 {[%emt 0:06:12]} Nd3 {[%emt 0:07:29] Black is now going downhill.} (18... Rfe8 $16) 19. Qg3 $1 $18 {[%emt 0:00:25] Threatens to win with Nf5.} Nh5 {[%emt 0:05:31] [#]} 20. Qf3 {[%emt 0:00:21]} Nf6 {[%emt 0:05:54] [#]} (20... g6 $142 21. Nf5 Kh7 22. Nxe7 Qxe7) 21. Nf5 $1 {[%emt 0:06:11]} Kh8 {[%emt 0:05:11]} (21... Kh7 {keeps fighting.} 22. Bc2 Nb4) 22. Bd4 {[%emt 0:02:39]} Nc5 {[%emt 0:00:25][%cal Oc5e4]} 23. Qg3 {[%emt 0:04:39]} Rg8 {[%emt 0:01:43]} 24. Bc2 {[%emt 0:04:42] Strongly threatening Qh4.} Rae8 {[%emt 0:04:38]} (24... Ncxe4 {was called for.} 25. Nxh6 (25. Bxe4 Nxe4 26. Bxg7+ Kh7 $15) (25. Nxe4 Qxf5 26. Nxf6 Qxc2 $16) 25... gxh6 (25... Nxg3 26. Nxf7#)) 25. Qh4 {[%emt 0:00:47][%cal Of5h6]} Nh7 {[%emt 0:02:19]} 26. Qxh6 {[%emt 0:01:27]} Bf6 {[%emt 0:00:18]} 27. Bxf6 {[%emt 0:00:59]} gxf6 {[%emt 0:00:04]} 28. Rae1 {[%emt 0:01:14]} Rg6 {[%emt 0:01:42]} 29. Qh4 {[%emt 0:00:37]} c6 {[%emt 0:01:31]} (29... a5 $142 30. Nf3 (30. g4 c6 $18) 30... b4) 30. b4 {[%emt 0:00:20]} Na4 {[%emt 0:00:36]} 31. Ne3 {[%emt 0:00:41]} Rg7 {[%emt 0:04:31]} 32. Nf5 {[%emt 0:00:19] Black must now prevent e5.} Rg6 $1 {[%emt 0:00:11]} 33. Ne3 {[%emt 0:00:03]} Rg7 $1 {[%emt 0:00:03]} 34. Nf3 {[%emt 0:00:37][%cal Oe4e5] Hoping for e5! White is clearly winning.} Nc3 {[%emt 0:00:25]} 35. Nf5 {[%emt 0:00:47]} Rg6 {[%emt 0:00:19]} 36. Re3 {[%emt 0:00:12]} Nxa2 {[%emt 0:01:15]} 37. Qe1 {[%emt 0:00:44]} Reg8 {[%emt 0:01:00]} 38. N3h4 {[%emt 0:00:20]} cxd5 {[%emt 0:01:17]} 39. exd5 {[%emt 0:00:45]} Bxd5 {[%emt 0:00:47]} 40. Nxg6+ {[%emt 0:00:25]} Rxg6 {[%emt 0:00:09]} 41. Re8+ {[%emt 0:03:43]} Rg8 {[%emt 0:01:24]} 42. Rxg8+ {[%emt 0:01:18]} Kxg8 {[%emt 0:00:06]} 43. Ne7+ {[%emt 0:02:40] Weighted Error Value: White=0.68/Black=0.44.  Mistake:       	White=1     	Black=6      Inaccurate:     	White=1     	Black=5      OK:         	White=12    	Black=6      Strong:       	White=1     	Black=2} 1-0